﻿Department Family,Entity,Date of Payment,Expense Type,Expense Area,Supplier,Voluntary & Community Sector,SME Class,Sole Trader,Transaction number,Purchasing Item Text,Postal Code,Amount in Sterling,Grant?
"Housing, Communities & Local Government",PINS,01/05/2020,EXP – PURCHASE OF GOODS /SERVICES R & D,Research and Development,GOPRO CONSULTING LTD,,Small,,5106259980,Beta Sprints Expenses,WC1N 2EB,"2,467.52",
"Housing, Communities & Local Government",PINS,01/05/2020,Specialist Technical Support,Corporate Services Director,HAYS SPECIALIST RECRUITMENT LTD,,Large,,5106259984,Data Protection Liason Officer,NW1 2AF,"3,580.50",
"Housing, Communities & Local Government",PINS,01/05/2020,Specialist Technical Support,Corporate Services Director,METHODS BUSINESS AND DIGITAL TECH,,Medium,,5106260039,DCS Business Analyst,EC1N 8TS,"13,800.00",
"Housing, Communities & Local Government",PINS,01/05/2020,Specialist Technical Support,Data and Performance,HAYS SPECIALIST RECRUITMENT LTD,,Large,,5106259967,Extension to 31.07.2020,NW1 2AF,"3,421.86",
"Housing, Communities & Local Government",PINS,01/05/2020,Specialist Technical Support,Corporate Services Director,HAYS SPECIALIST RECRUITMENT LTD,,Large,,5106259975,GDPR Trainer ,NW1 2AF,"2,832.00",
"Housing, Communities & Local Government",PINS,01/05/2020,Agency Staff,Human Resources,REED SPECIALIST RECRUITMENT LTD,,Large,,5106259870,HEO HR Resourcing,SW20 0BA,820.57,
"Housing, Communities & Local Government",PINS,01/05/2020,Specialist Technical Support,Digital Services,SOLOS CONSULTANTS LTD,,Large,,5106259983,Lead developer,NG16 1LA,"3,269.58",
"Housing, Communities & Local Government",PINS,01/05/2020,Specialist Technical Support,Research and Development,SOLOS CONSULTANTS LTD,,Large,,5106259986,ODT Business Analyst ,NG16 1LA,"2,423.66",
"Housing, Communities & Local Government",PINS,01/05/2020,EXP – PURCHASE OF GOODS /SERVICES R & D,Research and Development,HAYS SPECIALIST RECRUITMENT LTD,,Large,,5106259988,ODT Business Analyst ,NW1 2AF,"2,608.50",
"Housing, Communities & Local Government",PINS,01/05/2020,EXP – PURCHASE OF GOODS /SERVICES R & D,Research and Development,HAYS SPECIALIST RECRUITMENT LTD,,Large,,5106259985,ODT Content Designer,NW1 2AF,"2,070.90",
"Housing, Communities & Local Government",PINS,01/05/2020,Specialist Technical Support,Digital Services,HAYS SPECIALIST RECRUITMENT LTD,,Large,,5106259979,PHP Developer,NW1 2AF,"3,121.86",
"Housing, Communities & Local Government",PINS,01/05/2020,Specialist Technical Support,Data and Performance,HAYS SPECIALIST RECRUITMENT LTD,,Large,,5106259978,Senior records manager,NW1 2AF,"3,132.00",
"Housing, Communities & Local Government",PINS,01/05/2020,Specialist Technical Support,Research and Development,HAYS SPECIALIST RECRUITMENT LTD,,Large,,5106259976,Test Analyst ODT,NW1 2AF,"2,011.87",
"Housing, Communities & Local Government",PINS,01/05/2020,Specialist Technical Support,Research and Development,HAYS SPECIALIST RECRUITMENT LTD,,Large,,5106259977,Test Analyst ODT,NW1 2AF,"1,748.52",
"Housing, Communities & Local Government",PINS,01/05/2020,Software Licences,ODT Resourcing,GOPRO CONSULTING LTD,,Small,,5106259980,V4 - Hosting Yr2,WC1N 2EB,"3,092.10",
"Housing, Communities & Local Government",PINS,01/05/2020,Software Licences,Research and Development,GOPRO CONSULTING LTD,,Small,,5106259980,V9 - Beta Sprints Jan-March 2020,WC1N 2EB,"131,665.80",
"Housing, Communities & Local Government",PINS,04/05/2020,Agency Staff,Human Resources,HAYS SPECIALIST RECRUITMENT LTD,,Large,,5106260037,Admin OD/HR Support ,NW1 2AF,"1,196.34",
"Housing, Communities & Local Government",PINS,04/05/2020,Agency Staff,Strategy & Corp Governance,REED SPECIALIST RECRUITMENT LTD,,Large,,5106260044,AO PA Resource ,SW20 0BA,286.66,
"Housing, Communities & Local Government",PINS,04/05/2020,Specialist Technical Support,Corporate Services Director,METHODS BUSINESS AND DIGITAL TECH,,Medium,,5106259304,Corporate Systems Del Mger,EC1N 8TS,"14,833.80",
"Housing, Communities & Local Government",PINS,04/05/2020,Training,TR People,KORN FERRY (UK) LTD,,Large,,5106259993,Coaching,SW1Y 6QB,"12,434.00",
"Housing, Communities & Local Government",PINS,04/05/2020,Agency Staff,Human Resources,REED SPECIALIST RECRUITMENT LTD,,Large,,5106259716,HEO HR Resourcing,SW20 0BA,834.02,
"Housing, Communities & Local Government",PINS,04/05/2020,EXP – PURCHASE OF GOODS /SERVICES R & D,Research and Development,CAPITA RESOURCING LTD,,Large,,5106260031,ODT Test Analyst,SL6 1DP,"1,981.90",
"Housing, Communities & Local Government",PINS,04/05/2020,Advertising,Resourcing & Process,TMP (UK) LIMITED,,Large,,5106260013,Statutory Advertising ,W1T 7RQ,"1,214.47",
"Housing, Communities & Local Government",PINS,05/05/2020,Agency Staff,Knowledge & Horizon Scanning,REED SPECIALIST RECRUITMENT LTD,,Large,,5106260067,Agency Staff for Library ,SW20 0BA,604.73,
"Housing, Communities & Local Government",PINS,05/05/2020,Agency Staff,Human Resources,REED SPECIALIST RECRUITMENT LTD,,Large,,5106260046,AO HR ,SW20 0BA,674.56,
"Housing, Communities & Local Government",PINS,05/05/2020,Agency Staff,Strategy & Corp Governance,REED SPECIALIST RECRUITMENT LTD,,Large,,5106260052,AO PA Resource ,SW20 0BA,268.74,
"Housing, Communities & Local Government",PINS,05/05/2020,Specialist Technical Support,"Finance, Commercial & Business Support",HAYS SPECIALIST RECRUITMENT LTD,,Large,,5106259974,Commercial Manager ,NW1 2AF,977.33,
"Housing, Communities & Local Government",PINS,05/05/2020,Specialist Technical Support,Corporate Services Director,METHODS BUSINESS AND DIGITAL TECH,,Medium,,5106260058,DCS Business Analyst,EC1N 8TS,"13,800.00",
"Housing, Communities & Local Government",PINS,05/05/2020,Specialist Technical Support,Digital Services,MEDLEY BUSINESS SOLUTIONS LIMITED,,Medium,,5106260086,Digital Architect,GU4 8PR,"18,057.60",
"Housing, Communities & Local Government",PINS,05/05/2020,Agency Staff,Human Resources,REED SPECIALIST RECRUITMENT LTD,,Large,,5106260049,EO HR Resourcing,SW20 0BA,683.81,
"Housing, Communities & Local Government",PINS,05/05/2020,Agency Staff,Research and Development,REED SPECIALIST RECRUITMENT LTD,,Large,,5106260059,EO ODT Project Support,SW20 0BA,"1,130.98",
"Housing, Communities & Local Government",PINS,05/05/2020,Specialist Technical Support,"Finance, Commercial & Business Support",VENN GROUP,,Large,,5106260010,Finance resource for y/e CIR1 process +,SE1 2QP,"1,526.64",
"Housing, Communities & Local Government",PINS,05/05/2020,Specialist Technical Support,Research and Development,METHODS BUSINESS AND DIGITAL TECH,,Medium,,5106260056,ODT Programme Delivery Manager,EC1N 8TS,"22,482.00",
"Housing, Communities & Local Government",PINS,05/05/2020,EXP – PURCHASE OF GOODS /SERVICES R & D,Research and Development,REED SPECIALIST RECRUITMENT LTD,,Large,,5106260054,ODT Project Support ,SW20 0BA,539.64,
"Housing, Communities & Local Government",PINS,05/05/2020,Specialist Technical Support,Digital Services,HAYS SPECIALIST RECRUITMENT LTD,,Large,,5106260051,Office 365 SME,NW1 2AF,"3,121.86",
"Housing, Communities & Local Government",PINS,05/05/2020,Payroll Services,Human Resources,CGI IT UK LIMITED,,Large,,5106260060,Payroll service 2020/21,CF31 9AP,"4,120.86",
"Housing, Communities & Local Government",PINS,05/05/2020,Vehicle hire,Business Support,ENTERPRISE RENT A CAR,,Large,,5106260071,Vehicle Damage Claim,SO23 0LD,479.27,
"Housing, Communities & Local Government",PINS,05/05/2020,Vehicle hire,Business Support,ENTERPRISE RENT A CAR,,Large,,5106260070,Vehicle Damage Claim,SO23 0LD,356.23,
"Housing, Communities & Local Government",PINS,06/05/2020,Agency Staff,"Finance, Commercial & Business Support",REED SPECIALIST RECRUITMENT LTD,,Large,,5106260047,AA Storekeeper ,SW20 0BA,549.23,
"Housing, Communities & Local Government",PINS,06/05/2020,Agency Staff,Human Resources,HAYS SPECIALIST RECRUITMENT LTD,,Large,,5106260115,Admin OD/HR Support ,NW1 2AF,"1,196.34",
"Housing, Communities & Local Government",PINS,06/05/2020,Software Licences,Digital Services,GOPRO CONSULTING LTD,,Small,,5106260118,Annual Service Management (add.VMs),WC1N 2EB,"10,800.00",
"Housing, Communities & Local Government",PINS,06/05/2020,Software Licences,Human Resources,CARDINUS RISK MANAGEMENT,,Medium,,5106260116,Annual Support License,RH19 1UZ,919.25,
"Housing, Communities & Local Government",PINS,06/05/2020,Agency Staff,Strategy & Corp Governance,REED SPECIALIST RECRUITMENT LTD,,Large,,5106260087,AO PA Resource ,SW20 0BA,286.66,
"Housing, Communities & Local Government",PINS,06/05/2020,Specialist Technical Support,Digital Services,HAYS SPECIALIST RECRUITMENT LTD,,Large,,5106260109,BA Digital Hearings ,NW1 2AF,"2,737.49",
"Housing, Communities & Local Government",PINS,06/05/2020,Agency Staff,Research and Development,CAPITA RESOURCING LTD,,Large,,5106260104,Content Resource for March,SL6 1DP,"2,190.48",
"Housing, Communities & Local Government",PINS,06/05/2020,Specialist Technical Support,Heathrow,SOLOS CONSULTANTS LTD,,Large,,5106260110,Excel Expert forcasting,NG16 1LA,"1,361.28",
"Housing, Communities & Local Government",PINS,06/05/2020,EXP – PURCHASE OF GOODS /SERVICES R & D,Research and Development,METHODS BUSINESS AND DIGITAL TECH,,Medium,,5106260113,ODT Senior Project Manager,EC1N 8TS,"13,500.00",
"Housing, Communities & Local Government",PINS,06/05/2020,Specialist Technical Support,Research and Development,HAYS SPECIALIST RECRUITMENT LTD,,Large,,5106260121,ODT Test Analyst,NW1 2AF,"2,712.90",
"Housing, Communities & Local Government",PINS,06/05/2020,Specialist Technical Support,Research and Development,CAPITA RESOURCING LTD,,Large,,5106260124,ODT Test Analyst,SL6 1DP,"6,183.53",
"Housing, Communities & Local Government",PINS,06/05/2020,Agency Staff,Professional Leads,REED SPECIALIST RECRUITMENT LTD,,Large,,5106260048,PA Resource ,SW20 0BA,835.20,
"Housing, Communities & Local Government",PINS,06/05/2020,Software Licences,Digital Services,GOPRO CONSULTING LTD,,Small,,5106260118,Self Service Portal Yr2,WC1N 2EB,"69,120.00",
"Housing, Communities & Local Government",PINS,06/05/2020,Advertising,Resourcing & Process,TMP (UK) LIMITED,,Large,,5106260096,Statutory Advertising ,W1T 7RQ,627.60,
"Housing, Communities & Local Government",PINS,06/05/2020,Agency Staff,Inspector Development & Support Team,REED SPECIALIST RECRUITMENT LTD,,Large,,5106260062,Temp staff IDST ,SW20 0BA,521.14,
"Housing, Communities & Local Government",PINS,06/05/2020,Software Licences,ODT Resourcing,GOPRO CONSULTING LTD,,Small,,5106260118,V4 - ACMYr2,WC1N 2EB,"17,985.90",
"Housing, Communities & Local Government",PINS,06/05/2020,Software Licences,ODT Resourcing,GOPRO CONSULTING LTD,,Small,,5106260118,V4 - Cloud Resilience Yr2,WC1N 2EB,"18,000.00",
"Housing, Communities & Local Government",PINS,06/05/2020,Software Licences,ODT Resourcing,GOPRO CONSULTING LTD,,Small,,5106260118,V4 - Cloud Service Yr2,WC1N 2EB,"34,800.00",
"Housing, Communities & Local Government",PINS,07/05/2020,Agency Staff,Human Resources,HAYS SPECIALIST RECRUITMENT LTD,,Large,,5106260177,Admin OD/HR Support ,NW1 2AF,"1,196.34",
"Housing, Communities & Local Government",PINS,07/05/2020,Agency Staff,Human Resources,HAYS SPECIALIST RECRUITMENT LTD,,Large,,5106260178,Admin OD/HR Support ,NW1 2AF,"1,196.34",
"Housing, Communities & Local Government",PINS,07/05/2020,Agency Staff,Enforcements,REED SPECIALIST RECRUITMENT LTD,,Large,,5106260161,AO Enforcement Officer ,SW20 0BA,322.56,
"Housing, Communities & Local Government",PINS,07/05/2020,Specialist Technical Support,Digital Services,HAYS SPECIALIST RECRUITMENT LTD,,Large,,5106260132,BA Digital Hearings ,NW1 2AF,"3,421.86",
"Housing, Communities & Local Government",PINS,07/05/2020,Agency Staff,Communications,HAYS SPECIALIST RECRUITMENT LTD,,Large,,5106260144,Change Portfolio Comms Lead,NW1 2AF,"2,088.00",
"Housing, Communities & Local Government",PINS,07/05/2020,Training,TR People,RACHEL ROSS COACHING,,Micro,,5106260172,Coaching,SP10 9EA,484.35,
"Housing, Communities & Local Government",PINS,07/05/2020,Agency Staff,Corporate Services Director,HAYS SPECIALIST RECRUITMENT LTD,,Large,,5106260139,DPLO,NW1 2AF,"3,580.50",
"Housing, Communities & Local Government",PINS,07/05/2020,Specialist Technical Support,Data and Performance,HAYS SPECIALIST RECRUITMENT LTD,,Large,,5106260126,Extension to 31.07.2020,NW1 2AF,"3,421.86",
"Housing, Communities & Local Government",PINS,07/05/2020,Agency Staff,Transformation Prog Management Office,REED SPECIALIST RECRUITMENT LTD,,Large,,5106259871,Finance Business Partner,SW20 0BA,"1,151.57",
"Housing, Communities & Local Government",PINS,07/05/2020,Specialist Technical Support,Corporate Services Director,HAYS SPECIALIST RECRUITMENT LTD,,Large,,5106260154,GDPR Trainer ,NW1 2AF,"2,832.00",
"Housing, Communities & Local Government",PINS,07/05/2020,Specialist Technical Support,Digital Services,SOLOS CONSULTANTS LTD,,Large,,5106260130,Lead developer,NG16 1LA,"3,269.58",
"Housing, Communities & Local Government",PINS,07/05/2020,Specialist Technical Support,Research and Development,SOLOS CONSULTANTS LTD,,Large,,5106260162,ODT Business Analyst ,NG16 1LA,"3,029.58",
"Housing, Communities & Local Government",PINS,07/05/2020,EXP – PURCHASE OF GOODS /SERVICES R & D,Research and Development,HAYS SPECIALIST RECRUITMENT LTD,,Large,,5106260155,ODT Business Analyst ,NW1 2AF,"2,608.50",
"Housing, Communities & Local Government",PINS,07/05/2020,Specialist Technical Support,Research and Development,HAYS SPECIALIST RECRUITMENT LTD,,Large,,5106260133,ODT ID ,NW1 2AF,"3,079.68",
"Housing, Communities & Local Government",PINS,07/05/2020,Specialist Technical Support,Research and Development,HAYS SPECIALIST RECRUITMENT LTD,,Large,,5106260140,ODT ID ,NW1 2AF,"3,421.86",
"Housing, Communities & Local Government",PINS,07/05/2020,Specialist Technical Support,Research and Development,METHODS BUSINESS AND DIGITAL TECH,,Medium,,5106260160,ODT PM ,EC1N 8TS,"13,972.51",
"Housing, Communities & Local Government",PINS,07/05/2020,EXP – PURCHASE OF GOODS /SERVICES R & D,Research and Development,METHODS BUSINESS AND DIGITAL TECH,,Medium,,5106260159,ODT Project Manager,EC1N 8TS,"10,522.20",
"Housing, Communities & Local Government",PINS,07/05/2020,Specialist Technical Support,Research and Development,HAYS SPECIALIST RECRUITMENT LTD,,Large,,5106260173,ODT Scrum Master,NW1 2AF,"2,836.66",
"Housing, Communities & Local Government",PINS,07/05/2020,Specialist Technical Support,Research and Development,HAYS SPECIALIST RECRUITMENT LTD,,Large,,5106260175,ODT Scrum Master,NW1 2AF,"3,545.82",
"Housing, Communities & Local Government",PINS,07/05/2020,Specialist Technical Support,Research and Development,HAYS SPECIALIST RECRUITMENT LTD,,Large,,5106260137,ODT Test Analyst,NW1 2AF,"2,712.90",
"Housing, Communities & Local Government",PINS,07/05/2020,EXP – PURCHASE OF GOODS /SERVICES R & D,Research and Development,@ITS(SEARCH&SELECTION)LTD,,Small,,5106260165,ODTBenefits Analyst ,EC2V 6DL,"11,310.00",
"Housing, Communities & Local Government",PINS,07/05/2020,Software Licences,Digital Services,PHOENIX SOFTWARE,,Medium,,5106260091,Onedrive business plan per user licence,YO42 1NS,"1,546.56",
"Housing, Communities & Local Government",PINS,07/05/2020,Specialist Technical Support,Digital Services,HAYS SPECIALIST RECRUITMENT LTD,,Large,,5106260142,PHP Developer,NW1 2AF,"3,121.86",
"Housing, Communities & Local Government",PINS,07/05/2020,Specialist Technical Support,Digital Services,METHODS BUSINESS AND DIGITAL TECH,,Medium,,5106260101,Project support officer for Corporate Sy,EC1N 8TS,"7,471.20",
"Housing, Communities & Local Government",PINS,07/05/2020,Specialist Technical Support,Data and Performance,HAYS SPECIALIST RECRUITMENT LTD,,Large,,5106260138,Senior records manager,NW1 2AF,"3,132.00",
"Housing, Communities & Local Government",PINS,07/05/2020,Specialist Technical Support,Corporate Services Director,METHODS BUSINESS AND DIGITAL TECH,,Medium,,5106260166,Test Analyst,EC1N 8TS,"9,392.40",
"Housing, Communities & Local Government",PINS,07/05/2020,Specialist Technical Support,Corporate Services Director,METHODS BUSINESS AND DIGITAL TECH,,Medium,,5106260171,Test Analyst,EC1N 8TS,"9,904.80",
"Housing, Communities & Local Government",PINS,07/05/2020,Specialist Technical Support,Research and Development,HAYS SPECIALIST RECRUITMENT LTD,,Large,,5106260136,Test Analyst ODT,NW1 2AF,"2,514.84",
"Housing, Communities & Local Government",PINS,07/05/2020,Specialist Technical Support,Research and Development,HAYS SPECIALIST RECRUITMENT LTD,,Large,,5106260141,Test Analyst ODT,NW1 2AF,"1,748.52",
"Housing, Communities & Local Government",PINS,07/05/2020,Specialist Technical Support,Research and Development,METHODS BUSINESS AND DIGITAL TECH,,Medium,,5106260156,Test Manager and Automation ODT,EC1N 8TS,"13,800.00",
"Housing, Communities & Local Government",PINS,07/05/2020,Agency Staff,Director of Volume Casework,REED SPECIALIST RECRUITMENT LTD,,Large,,5106260050,Validation Officer,SW20 0BA,614.40,
"Housing, Communities & Local Government",PINS,07/05/2020,Agency Staff,Director of Volume Casework,REED SPECIALIST RECRUITMENT LTD,,Large,,5106260066,Validation Officer,SW20 0BA,614.40,
"Housing, Communities & Local Government",PINS,11/05/2020,Specialist Technical Support,MIPINS,HAYS SPECIALIST RECRUITMENT LTD,,Large,,5106260064,BI Developer ,NW1 2AF,"2,830.32",
"Housing, Communities & Local Government",PINS,11/05/2020,Specialist Technical Support,MIPINS,HAYS SPECIALIST RECRUITMENT LTD,,Large,,5106260135,BI Developer ,NW1 2AF,"2,830.32",
"Housing, Communities & Local Government",PINS,11/05/2020,Agency Staff,Research and Development,CAPITA RESOURCING LTD,,Large,,5106260102,Content Resource for March,SL6 1DP,876.19,
"Housing, Communities & Local Government",PINS,11/05/2020,Agency Staff,"Finance, Commercial & Business Support",REED SPECIALIST RECRUITMENT LTD,,Large,,5106260045,Finance Business Partner,SW20 0BA,"1,424.82",
"Housing, Communities & Local Government",PINS,11/05/2020,EXP – PURCHASE OF GOODS /SERVICES R & D,"Finance, Commercial & Business Support",VENN GROUP,,Large,,5106260193,Finance resource for y/e CIR1 process +,SE1 2QP,"1,272.20",
"Housing, Communities & Local Government",PINS,11/05/2020,EXP – PURCHASE OF GOODS /SERVICES R & D,Research and Development,HAYS SPECIALIST RECRUITMENT LTD,,Large,,5106260185,ODT User Researcher,NW1 2AF,"1,710.93",
"Housing, Communities & Local Government",PINS,12/05/2020,Agency Staff,Knowledge & Horizon Scanning,REED SPECIALIST RECRUITMENT LTD,,Large,,5106260280,Agency Staff for Library ,SW20 0BA,604.73,
"Housing, Communities & Local Government",PINS,12/05/2020,Agency Staff,Human Resources,REED SPECIALIST RECRUITMENT LTD,,Large,,5106260241,AO HR ,SW20 0BA,674.56,
"Housing, Communities & Local Government",PINS,12/05/2020,Agency Staff,Strategy & Corp Governance,REED SPECIALIST RECRUITMENT LTD,,Large,,5106260278,AO PA Resource ,SW20 0BA,279.13,
"Housing, Communities & Local Government",PINS,12/05/2020,Specialist Technical Support,"Finance, Commercial & Business Support",HAYS SPECIALIST RECRUITMENT LTD,,Large,,5106260145,Commercial Manager ,NW1 2AF,977.33,
"Housing, Communities & Local Government",PINS,12/05/2020,Specialist Technical Support,Digital Services,METHODS BUSINESS AND DIGITAL TECH,,Medium,,5106260283,Contract ext ,EC1N 8TS,"13,704.00",
"Housing, Communities & Local Government",PINS,12/05/2020,Specialist Technical Support,Corporate Services Director,METHODS BUSINESS AND DIGITAL TECH,,Medium,,5106260272,Corporate Systems Del Mger,EC1N 8TS,"16,482.00",
"Housing, Communities & Local Government",PINS,12/05/2020,Specialist Technical Support,Corporate Services Director,METHODS BUSINESS AND DIGITAL TECH,,Medium,,5106260157,DCS Business Analyst,EC1N 8TS,"13,800.00",
"Housing, Communities & Local Government",PINS,12/05/2020,Agency Staff,Research and Development,REED SPECIALIST RECRUITMENT LTD,,Large,,5106260242,EO ODT Project Support,SW20 0BA,"1,130.98",
"Housing, Communities & Local Government",PINS,12/05/2020,Specialist Technical Support,Heathrow,SOLOS CONSULTANTS LTD,,Large,,5106260129,Excel Expert forcasting,NG16 1LA,"1,361.28",
"Housing, Communities & Local Government",PINS,12/05/2020,IT - Service Contracts,Digital Services,MHCLG,,Public Bodies,,5106260281,MHCLG FJ exit recharge - 30% of 276567,HP2 4XN,"8,555.28",
"Housing, Communities & Local Government",PINS,12/05/2020,IT Maintenance,Digital Services,X M A LIMITED,,Data Not Provided,,5106260224,Monitors ,NG11 7EP,"1,550.00",
"Housing, Communities & Local Government",PINS,12/05/2020,Specialist Technical Support,Digital Services,HAYS SPECIALIST RECRUITMENT LTD,,Large,,5106260225,Office 365 SME,NW1 2AF,"2,497.49",
"Housing, Communities & Local Government",PINS,12/05/2020,Agency Staff,Professional Leads,REED SPECIALIST RECRUITMENT LTD,,Large,,5106260228,PA Resource ,SW20 0BA,801.79,
"Housing, Communities & Local Government",PINS,12/05/2020,Agency Staff,Inspector Development & Support Team,REED SPECIALIST RECRUITMENT LTD,,Large,,5106260233,Temp staff IDST ,SW20 0BA,647.47,
"Housing, Communities & Local Government",PINS,13/05/2020,Specialist Technical Support,MIPINS,METHODS BUSINESS AND DIGITAL TECH,,Medium,,5106260324,Extension to 30.06.2020,EC1N 8TS,"1,616.24",
"Housing, Communities & Local Government",PINS,13/05/2020,Specialist Technical Support,MIPINS,METHODS BUSINESS AND DIGITAL TECH,,Medium,,5106260324,Extension to 31.03.2020,EC1N 8TS,"14,544.16",
"Housing, Communities & Local Government",PINS,13/05/2020,Agency Staff,Transformation Prog Management Office,REED SPECIALIST RECRUITMENT LTD,,Large,,5106260229,Finance Business Partner,SW20 0BA,"1,444.33",
"Housing, Communities & Local Government",PINS,13/05/2020,EXP – PURCHASE OF GOODS /SERVICES R & D,Research and Development,REED SPECIALIST RECRUITMENT LTD,,Large,,5106260323,ODT Project Support ,SW20 0BA,539.64,
"Housing, Communities & Local Government",PINS,13/05/2020,Specialist Technical Support,Research and Development,METHODS BUSINESS AND DIGITAL TECH,,Medium,,5106260183,ODT Test Analyst,EC1N 8TS,"8,316.00",
"Housing, Communities & Local Government",PINS,13/05/2020,Specialist Technical Support,MIPINS,METHODS BUSINESS AND DIGITAL TECH,,Medium,,5106260184,Power BI Developer ,EC1N 8TS,"12,691.20",
"Housing, Communities & Local Government",PINS,14/05/2020,Mobile phone costs,Digital Services,DAISY COMMUNICATIONS LIMITED,,Large,,5106260342,Ac ATV1903 mobile wifi devices,BB9 5SR,"1,877.03",
"Housing, Communities & Local Government",PINS,14/05/2020,Training,TR People,RACHEL ROSS COACHING,,Micro,,5106260350,Coaching,SP10 9EA,450.00,
"Housing, Communities & Local Government",PINS,14/05/2020,IT Maintenance,Digital Services,X M A LIMITED,,Data Not Provided,,5106260349,Monitors ,NG11 7EP,"2,790.00",
"Housing, Communities & Local Government",PINS,14/05/2020,Specialist Technical Support,Transformation Prog Management Office,METHODS BUSINESS AND DIGITAL TECH,,Medium,,5106260327,PM for performance Recovery,EC1N 8TS,"20,960.40",
"Housing, Communities & Local Government",PINS,14/05/2020,EXP – PURCHASE OF GOODS /SERVICES R & D,Research and Development,GOPRO CONSULTING LTD,,Small,,5106260344,V10 - Beta Sprints April- June 2020,WC1N 2EB,"115,704.60",
"Housing, Communities & Local Government",PINS,14/05/2020,Software Licences,ODT Resourcing,GOPRO CONSULTING LTD,,Small,,5106260344,V4 - Hosting Yr1,WC1N 2EB,"3,099.36",
"Housing, Communities & Local Government",PINS,14/05/2020,Agency Staff,Director of Volume Casework,REED SPECIALIST RECRUITMENT LTD,,Large,,5106260238,Validation Officer,SW20 0BA,614.40,
"Housing, Communities & Local Government",PINS,14/05/2020,Agency Staff,Director of Volume Casework,REED SPECIALIST RECRUITMENT LTD,,Large,,5106260232,Validation Officer,SW20 0BA,614.40,
"Housing, Communities & Local Government",PINS,15/05/2020,Agency Staff,Human Resources,HAYS SPECIALIST RECRUITMENT LTD,,Large,,5106260379,Admin OD/HR Support ,NW1 2AF,957.07,
"Housing, Communities & Local Government",PINS,15/05/2020,Specialist Technical Support,Digital Services,HAYS SPECIALIST RECRUITMENT LTD,,Large,,5106260374,BA Digital Hearings ,NW1 2AF,"2,737.49",
"Housing, Communities & Local Government",PINS,15/05/2020,Agency Staff,Communications,HAYS SPECIALIST RECRUITMENT LTD,,Large,,5106260380,Change Portfolio Comms Lead,NW1 2AF,"1,670.40",
"Housing, Communities & Local Government",PINS,15/05/2020,Agency Staff,Corporate Services Director,HAYS SPECIALIST RECRUITMENT LTD,,Large,,5106260384,DPLO,NW1 2AF,"2,864.40",
"Housing, Communities & Local Government",PINS,15/05/2020,Specialist Technical Support,Heathrow,SOLOS CONSULTANTS LTD,,Large,,5106260369,Excel Expert forcasting,NG16 1LA,"1,089.02",
"Housing, Communities & Local Government",PINS,15/05/2020,Specialist Technical Support,Data and Performance,HAYS SPECIALIST RECRUITMENT LTD,,Large,,5106260365,Extension to 31.07.2020,NW1 2AF,"2,737.49",
"Housing, Communities & Local Government",PINS,15/05/2020,Safety equipment,COVID-19,FLUID BRANDING LTD,,Medium,,5106260366,Face Masks COVID 19 ,PL26 8WE,"6,900.00",
"Housing, Communities & Local Government",PINS,15/05/2020,Specialist Technical Support,Corporate Services Director,HAYS SPECIALIST RECRUITMENT LTD,,Large,,5106260370,GDPR Trainer ,NW1 2AF,"2,265.60",
"Housing, Communities & Local Government",PINS,15/05/2020,Specialist Technical Support,Digital Services,SOLOS CONSULTANTS LTD,,Large,,5106260373,Lead developer,NG16 1LA,"2,615.66",
"Housing, Communities & Local Government",PINS,15/05/2020,Specialist Technical Support,Research and Development,SOLOS CONSULTANTS LTD,,Large,,5106260367,ODT Business Analyst ,NG16 1LA,"2,423.66",
"Housing, Communities & Local Government",PINS,15/05/2020,EXP – PURCHASE OF GOODS /SERVICES R & D,Research and Development,HAYS SPECIALIST RECRUITMENT LTD,,Large,,5106260377,ODT Business Analyst ,NW1 2AF,"2,086.80",
"Housing, Communities & Local Government",PINS,15/05/2020,EXP – PURCHASE OF GOODS /SERVICES R & D,Research and Development,HAYS SPECIALIST RECRUITMENT LTD,,Large,,5106260372,ODT ID ,NW1 2AF,"2,281.24",
"Housing, Communities & Local Government",PINS,15/05/2020,EXP – PURCHASE OF GOODS /SERVICES R & D,Research and Development,HAYS SPECIALIST RECRUITMENT LTD,,Large,,5106260375,ODT User Researcher,NW1 2AF,"2,281.24",
"Housing, Communities & Local Government",PINS,15/05/2020,Specialist Technical Support,Digital Services,HAYS SPECIALIST RECRUITMENT LTD,,Large,,5106260371,PHP Developer,NW1 2AF,"3,121.86",
"Housing, Communities & Local Government",PINS,15/05/2020,Specialist Technical Support,Data and Performance,HAYS SPECIALIST RECRUITMENT LTD,,Large,,5106260383,Senior records manager,NW1 2AF,"2,505.60",
"Housing, Communities & Local Government",PINS,15/05/2020,Specialist Technical Support,Research and Development,HAYS SPECIALIST RECRUITMENT LTD,,Large,,5106260378,Test Analyst ODT,NW1 2AF,"2,011.87",
"Housing, Communities & Local Government",PINS,15/05/2020,Specialist Technical Support,Research and Development,HAYS SPECIALIST RECRUITMENT LTD,,Large,,5106260376,Test Analyst ODT,NW1 2AF,"1,398.82",
"Housing, Communities & Local Government",PINS,18/05/2020,Safety equipment,COVID-19,FLUID BRANDING LTD,,Medium,,5106260423,Antibac Wipes COVID 19 ,PL26 8WE,"4,200.00",
"Housing, Communities & Local Government",PINS,18/05/2020,Safety equipment,COVID-19,FLUID BRANDING LTD,,Medium,,5106260423,Collation Shipping COVID 19,PL26 8WE,"6,235.20",
"Housing, Communities & Local Government",PINS,18/05/2020,Specialist Technical Support,"Finance, Commercial & Business Support",HAYS SPECIALIST RECRUITMENT LTD,,Large,,5106260381,Commercial Manager ,NW1 2AF,977.33,
"Housing, Communities & Local Government",PINS,18/05/2020,EXP – PURCHASE OF GOODS /SERVICES R & D,Research and Development,METHODS BUSINESS AND DIGITAL TECH,,Medium,,5106260103,DDM ,EC1N 8TS,"13,500.00",
"Housing, Communities & Local Government",PINS,18/05/2020,Safety equipment,COVID-19,FLUID BRANDING LTD,,Medium,,5106260423,Hand Sanitiser COVID 19,PL26 8WE,"6,900.00",
"Housing, Communities & Local Government",PINS,18/05/2020,Advertising,Resourcing & Process,TMP (UK) LIMITED,,Large,,5106260419,Statutory Advertising ,W1T 7RQ,258.24,
"Housing, Communities & Local Government",PINS,18/05/2020,Advertising,Resourcing & Process,TMP (UK) LIMITED,,Large,,5106260418,Statutory Advertising ,W1T 7RQ,"3,757.91",
"Housing, Communities & Local Government",PINS,19/05/2020,Agency Staff,"Finance, Commercial & Business Support",REED SPECIALIST RECRUITMENT LTD,,Large,,5106260430,AA Storekeeper ,SW20 0BA,445.32,
"Housing, Communities & Local Government",PINS,19/05/2020,Agency Staff,"Finance, Commercial & Business Support",REED SPECIALIST RECRUITMENT LTD,,Large,,5106260445,AA Storekeeper ,SW20 0BA,549.23,
"Housing, Communities & Local Government",PINS,19/05/2020,Mobile phone costs,Digital Services,DAISY COMMUNICATIONS LIMITED,,Large,,5106260450,Ac KZR68315 Smart phones,BB9 5SR,"4,175.23",
"Housing, Communities & Local Government",PINS,19/05/2020,Agency Staff,Knowledge & Horizon Scanning,REED SPECIALIST RECRUITMENT LTD,,Large,,5106260454,Agency Staff for Library ,SW20 0BA,518.93,
"Housing, Communities & Local Government",PINS,19/05/2020,Agency Staff,Human Resources,REED SPECIALIST RECRUITMENT LTD,,Large,,5106260439,AO HR ,SW20 0BA,539.64,
"Housing, Communities & Local Government",PINS,19/05/2020,Agency Staff,Strategy & Corp Governance,REED SPECIALIST RECRUITMENT LTD,,Large,,5106260433,AO PA Resource ,SW20 0BA,273.22,
"Housing, Communities & Local Government",PINS,19/05/2020,Specialist Technical Support,MIPINS,METHODS BUSINESS AND DIGITAL TECH,,Medium,,5106260449,Change Portfolio PM,EC1N 8TS,"15,560.40",
"Housing, Communities & Local Government",PINS,19/05/2020,Agency Staff,Research and Development,REED SPECIALIST RECRUITMENT LTD,,Large,,5106260425,EO ODT Project Support,SW20 0BA,899.64,
"Housing, Communities & Local Government",PINS,19/05/2020,Agency Staff,Transformation Prog Management Office,REED SPECIALIST RECRUITMENT LTD,,Large,,5106260427,Finance Business Partner,SW20 0BA,"1,190.60",
"Housing, Communities & Local Government",PINS,19/05/2020,EXP – PURCHASE OF GOODS /SERVICES R & D,"Finance, Commercial & Business Support",VENN GROUP,,Large,,5106260440,Finance resource for y/e CIR1 process +,SE1 2QP,"1,017.76",
"Housing, Communities & Local Government",PINS,19/05/2020,EXP – PURCHASE OF GOODS /SERVICES R & D,Research and Development,HAYS SPECIALIST RECRUITMENT LTD,,Large,,5106260436,ODT Content Designer,NW1 2AF,414.18,
"Housing, Communities & Local Government",PINS,19/05/2020,EXP – PURCHASE OF GOODS /SERVICES R & D,Research and Development,HAYS SPECIALIST RECRUITMENT LTD,,Large,,5106260435,ODT Content Designer,NW1 2AF,"2,070.90",
"Housing, Communities & Local Government",PINS,19/05/2020,EXP – PURCHASE OF GOODS /SERVICES R & D,Research and Development,REED SPECIALIST RECRUITMENT LTD,,Large,,5106260426,ODT Project Support ,SW20 0BA,548.64,
"Housing, Communities & Local Government",PINS,19/05/2020,Specialist Technical Support,Research and Development,HAYS SPECIALIST RECRUITMENT LTD,,Large,,5106260382,ODT Test Analyst,NW1 2AF,"2,170.32",
"Housing, Communities & Local Government",PINS,19/05/2020,Specialist Technical Support,Digital Services,HAYS SPECIALIST RECRUITMENT LTD,,Large,,5106260434,Office 365 SME,NW1 2AF,"3,121.86",
"Housing, Communities & Local Government",PINS,19/05/2020,Office Supplies,Business Support,BANNER BUSINESS SUPPLIES LTD,,Large,,5106260452,office stationery 19/20,S9 1XU,486.11,
"Housing, Communities & Local Government",PINS,19/05/2020,Translations,Wales Support,TROSOL CYFYNGEDIG,,Small,,5106260441,Pins Wales translation costs extension,CF14 5GH,"2,670.78",
"Housing, Communities & Local Government",PINS,19/05/2020,Agency Staff,Inspector Development & Support Team,REED SPECIALIST RECRUITMENT LTD,,Large,,5106260428,Temp staff IDST ,SW20 0BA,489.55,
"Housing, Communities & Local Government",PINS,19/05/2020,Agency Staff,Director of Volume Casework,REED SPECIALIST RECRUITMENT LTD,,Large,,5106260448,Validation Officer,SW20 0BA,491.52,
"Housing, Communities & Local Government",PINS,19/05/2020,Agency Staff,Director of Volume Casework,REED SPECIALIST RECRUITMENT LTD,,Large,,5106260438,Validation Officer,SW20 0BA,491.52,
"Housing, Communities & Local Government",PINS,20/05/2020,Mobile phone costs,Digital Services,DAISY COMMUNICATIONS LIMITED,,Large,,5106260488,Ac KZR68315 Smart phones,BB9 5SR,744.96,
"Housing, Communities & Local Government",PINS,20/05/2020,Courier Services,Estates,ROYAL MAIL,,Large,,5106260475,Postal services VAT 19/20,S49 1HQ,290.95,
"Housing, Communities & Local Government",PINS,20/05/2020,Advertising,Resourcing & Process,TMP (UK) LIMITED,,Large,,5106260470,Statutory Advertising ,W1T 7RQ,286.66,
"Housing, Communities & Local Government",PINS,20/05/2020,Advertising,ROW,TMP (UK) LIMITED,,Large,,5106260465,Statutory Advertising ,W1T 7RQ,945.12,
"Housing, Communities & Local Government",PINS,20/05/2020,Training,Communications,Tom Dalgarno,,Micro,,5106260473,Video Production Services 20/21,BS5 7DG,700.00,
"Housing, Communities & Local Government",PINS,21/05/2020,Agency Staff,Professional Leads,REED SPECIALIST RECRUITMENT LTD,,Large,,5106260429,PA Resource ,SW20 0BA,668.16,
"Housing, Communities & Local Government",PINS,22/05/2020,Agency Staff,Human Resources,HAYS SPECIALIST RECRUITMENT LTD,,Large,,5106260502,Admin OD/HR Support ,NW1 2AF,"1,196.34",
"Housing, Communities & Local Government",PINS,22/05/2020,Specialist Technical Support,Digital Services,HAYS SPECIALIST RECRUITMENT LTD,,Large,,5106260500,BA Digital Hearings ,NW1 2AF,"3,421.86",
"Housing, Communities & Local Government",PINS,22/05/2020,EXP – PURCHASE OF GOODS /SERVICES R & D,Research and Development,CORPORATE DOCUMENT SERVICES LTD,,Data Not Provided,,5106260536,CCN March/April Package of work,LS2 7LY,"20,288.00",
"Housing, Communities & Local Government",PINS,22/05/2020,Agency Staff,Communications,HAYS SPECIALIST RECRUITMENT LTD,,Large,,5106260516,Change Portfolio Comms Lead,NW1 2AF,"2,088.00",
"Housing, Communities & Local Government",PINS,22/05/2020,Specialist Technical Support,Heathrow,SOLOS CONSULTANTS LTD,,Large,,5106260523,Excel Expert forcasting,NG16 1LA,"1,361.28",
"Housing, Communities & Local Government",PINS,22/05/2020,Specialist Technical Support,Data and Performance,HAYS SPECIALIST RECRUITMENT LTD,,Large,,5106260499,Extension to 31.07.2020,NW1 2AF,"3,421.86",
"Housing, Communities & Local Government",PINS,22/05/2020,EXP – PURCHASE OF GOODS /SERVICES R & D,Research and Development,HAYS SPECIALIST RECRUITMENT LTD,,Large,,5106260506,ODT Business Analyst ,NW1 2AF,"2,086.80",
"Housing, Communities & Local Government",PINS,22/05/2020,EXP – PURCHASE OF GOODS /SERVICES R & D,Research and Development,HAYS SPECIALIST RECRUITMENT LTD,,Large,,5106260507,ODT Content Designer,NW1 2AF,"1,656.72",
"Housing, Communities & Local Government",PINS,22/05/2020,EXP – PURCHASE OF GOODS /SERVICES R & D,Research and Development,HAYS SPECIALIST RECRUITMENT LTD,,Large,,5106260514,ODT Test Analyst,NW1 2AF,"2,260.75",
"Housing, Communities & Local Government",PINS,22/05/2020,EXP – PURCHASE OF GOODS /SERVICES R & D,Research and Development,HAYS SPECIALIST RECRUITMENT LTD,,Large,,5106260503,ODT User Researcher,NW1 2AF,"2,851.55",
"Housing, Communities & Local Government",PINS,22/05/2020,Specialist Technical Support,Digital Services,HAYS SPECIALIST RECRUITMENT LTD,,Large,,5106260501,PHP Developer,NW1 2AF,"3,121.86",
"Housing, Communities & Local Government",PINS,22/05/2020,Specialist Technical Support,MIPINS,METHODS BUSINESS AND DIGITAL TECH,,Medium,,5106260432,Product Analyst Resource,EC1N 8TS,"13,291.20",
"Housing, Communities & Local Government",PINS,22/05/2020,Specialist Technical Support,Data and Performance,HAYS SPECIALIST RECRUITMENT LTD,,Large,,5106260511,Senior records manager,NW1 2AF,"3,132.00",
"Housing, Communities & Local Government",PINS,22/05/2020,Advertising,Resourcing & Process,TMP (UK) LIMITED,,Large,,5106260515,Statutory Advertising ,W1T 7RQ,945.12,
"Housing, Communities & Local Government",PINS,22/05/2020,Specialist Technical Support,Research and Development,HAYS SPECIALIST RECRUITMENT LTD,,Large,,5106260504,Test Analyst ODT,NW1 2AF,"2,514.84",
"Housing, Communities & Local Government",PINS,22/05/2020,Specialist Technical Support,Research and Development,HAYS SPECIALIST RECRUITMENT LTD,,Large,,5106260509,Test Analyst ODT,NW1 2AF,"1,748.52",
"Housing, Communities & Local Government",PINS,26/05/2020,IT SUPPORT,Data and Performance,SANDERSON GOVERNMENT & DEFENCE,,Large,,5106260461,BI Developer ,BS8 2QX,"12,078.30",
"Housing, Communities & Local Government",PINS,26/05/2020,Specialist Technical Support,MIPINS,HAYS SPECIALIST RECRUITMENT LTD,,Large,,5106260513,BI Developer ,NW1 2AF,"2,264.26",
"Housing, Communities & Local Government",PINS,26/05/2020,Specialist Technical Support,MIPINS,HAYS SPECIALIST RECRUITMENT LTD,,Large,,5106260510,BI Developer ,NW1 2AF,"2,547.29",
"Housing, Communities & Local Government",PINS,26/05/2020,Specialist Technical Support,Corporate Services Director,HAYS SPECIALIST RECRUITMENT LTD,,Large,,5106260573,GDPR Trainer ,NW1 2AF,"2,832.00",
"Housing, Communities & Local Government",PINS,26/05/2020,Specialist Technical Support,Research and Development,SOLOS CONSULTANTS LTD,,Large,,5106260522,ODT Business Analyst ,NG16 1LA,"3,029.58",
"Housing, Communities & Local Government",PINS,26/05/2020,Physical Storage,Business Support,RESTORE PLC,,Large,,5106260296,offsite storage 19/20,RH1 5DY,"1,056.88",
"Housing, Communities & Local Government",PINS,27/05/2020,Agency Staff,Human Resources,REED SPECIALIST RECRUITMENT LTD,,Large,,5106260598,AO HR ,SW20 0BA,674.56,
"Housing, Communities & Local Government",PINS,27/05/2020,Agency Staff,Research and Development,REED SPECIALIST RECRUITMENT LTD,,Large,,5106260599,EO ODT Project Support,SW20 0BA,"1,130.98",
"Housing, Communities & Local Government",PINS,27/05/2020,Specialist Technical Support,Digital Services,HAYS SPECIALIST RECRUITMENT LTD,,Large,,5106260597,Office 365 SME,NW1 2AF,"3,121.86",
"Housing, Communities & Local Government",PINS,28/05/2020,Agency Staff,"Finance, Commercial & Business Support",REED SPECIALIST RECRUITMENT LTD,,Large,,5106260630,AA Storekeeper ,SW20 0BA,549.23,
"Housing, Communities & Local Government",PINS,28/05/2020,Agency Staff,Knowledge & Horizon Scanning,REED SPECIALIST RECRUITMENT LTD,,Large,,5106260625,Agency Staff for Library ,SW20 0BA,588.38,
"Housing, Communities & Local Government",PINS,28/05/2020,Agency Staff,Strategy & Corp Governance,REED SPECIALIST RECRUITMENT LTD,,Large,,5106260627,AO PA Resource ,SW20 0BA,268.74,
"Housing, Communities & Local Government",PINS,28/05/2020,IT SUPPORT,Data and Performance,SANDERSON GOVERNMENT & DEFENCE,,Large,,5106260623,BI Developer ,BS8 2QX,"3,178.50",
"Housing, Communities & Local Government",PINS,28/05/2020,Specialist Technical Support,MIPINS,SANDERSON GOVERNMENT & DEFENCE,,Large,,5106260613,BI Developer ,BS8 2QX,"12,078.30",
"Housing, Communities & Local Government",PINS,28/05/2020,Specialist Technical Support,"Finance, Commercial & Business Support",HAYS SPECIALIST RECRUITMENT LTD,,Large,,5106260512,Commercial Manager ,NW1 2AF,977.33,
"Housing, Communities & Local Government",PINS,28/05/2020,Agency Staff,Corporate Services Director,HAYS SPECIALIST RECRUITMENT LTD,,Large,,5106260508,DPLO,NW1 2AF,"3,580.50",
"Housing, Communities & Local Government",PINS,28/05/2020,Agency Staff,"Finance, Commercial & Business Support",REED SPECIALIST RECRUITMENT LTD,,Large,,5106260602,Finance Business Partner,SW20 0BA,"1,268.68",
"Housing, Communities & Local Government",PINS,28/05/2020,EXP – PURCHASE OF GOODS /SERVICES R & D,"Finance, Commercial & Business Support",VENN GROUP,,Large,,5106260638,Finance resource for y/e CIR1 process +,SE1 2QP,"1,272.20",
"Housing, Communities & Local Government",PINS,28/05/2020,Travel and Subsistence Account,Inspector Costs + NSI,CORPORATE TRAVEL MANAGEMENT(NORTH)L,,Small,,5106260637,Hotel,BD1 5HQ,992.30,
"Housing, Communities & Local Government",PINS,28/05/2020,Specialist Technical Support,Digital Services,SOLOS CONSULTANTS LTD,,Large,,5106260524,Lead developer,NG16 1LA,"3,269.58",
"Housing, Communities & Local Government",PINS,28/05/2020,EXP – PURCHASE OF GOODS /SERVICES R & D,Research and Development,REED SPECIALIST RECRUITMENT LTD,,Large,,5106260636,ODT Project Support ,SW20 0BA,665.56,
"Housing, Communities & Local Government",PINS,28/05/2020,Specialist Technical Support,Research and Development,TALENT INTERNATIONAL PTY LTD,,Medium,,5106260622,ODT User Researcher,B3 2ES,"13,450.50",
"Housing, Communities & Local Government",PINS,28/05/2020,Agency Staff,Professional Leads,REED SPECIALIST RECRUITMENT LTD,,Large,,5106260595,PA Resource ,SW20 0BA,835.20,
"Housing, Communities & Local Government",PINS,28/05/2020,Advertising,Resourcing & Process,TMP (UK) LIMITED,,Large,,5106260612,Statutory Advertising ,W1T 7RQ,725.99,
"Housing, Communities & Local Government",PINS,28/05/2020,Advertising,Resourcing & Process,TMP (UK) LIMITED,,Large,,5106260619,Statutory Advertising ,W1T 7RQ,"2,301.46",
"Housing, Communities & Local Government",PINS,28/05/2020,Agency Staff,Inspector Development & Support Team,REED SPECIALIST RECRUITMENT LTD,,Large,,5106260594,Temp staff IDST ,SW20 0BA,663.26,
"Housing, Communities & Local Government",PINS,28/05/2020,Vehicle hire,Business Support,ENTERPRISE RENT A CAR,,Large,,5106260617,Vehicle Damage Claim,SO23 0LD,519.57,
"Housing, Communities & Local Government",PINS,28/05/2020,Agency Staff,Director of Volume Casework,REED SPECIALIST RECRUITMENT LTD,,Large,,5106260600,Validation Officer,SW20 0BA,614.40,
"Housing, Communities & Local Government",PINS,28/05/2020,Agency Staff,Director of Volume Casework,REED SPECIALIST RECRUITMENT LTD,,Large,,5106260601,Validation Officer,SW20 0BA,614.40,
"Housing, Communities & Local Government",PINS,29/05/2020,Agency Staff,Human Resources,HAYS SPECIALIST RECRUITMENT LTD,,Large,,5106260642,Admin OD/HR Support ,NW1 2AF,"1,196.34",
"Housing, Communities & Local Government",PINS,29/05/2020,Specialist Technical Support,Digital Services,HAYS SPECIALIST RECRUITMENT LTD,,Large,,5106260652,BA Digital Hearings ,NW1 2AF,"3,421.86",
"Housing, Communities & Local Government",PINS,29/05/2020,Specialist Technical Support,Research and Development,HAYS SPECIALIST RECRUITMENT LTD,,Large,,5106260645,ODT Business Analyst ,NW1 2AF,"2,504.16",
"Housing, Communities & Local Government",PINS,29/05/2020,EXP – PURCHASE OF GOODS /SERVICES R & D,Research and Development,HAYS SPECIALIST RECRUITMENT LTD,,Large,,5106260649,ODT ID ,NW1 2AF,"2,851.55",
"Housing, Communities & Local Government",PINS,29/05/2020,EXP – PURCHASE OF GOODS /SERVICES R & D,Research and Development,HAYS SPECIALIST RECRUITMENT LTD,,Large,,5106260647,ODT Test Analyst,NW1 2AF,"2,260.75",
"Housing, Communities & Local Government",PINS,29/05/2020,EXP – PURCHASE OF GOODS /SERVICES R & D,Research and Development,HAYS SPECIALIST RECRUITMENT LTD,,Large,,5106260651,ODT User Researcher,NW1 2AF,"2,851.55",
"Housing, Communities & Local Government",PINS,29/05/2020,Specialist Technical Support,Digital Services,HAYS SPECIALIST RECRUITMENT LTD,,Large,,5106260650,PHP Developer,NW1 2AF,"3,121.86",
"Housing, Communities & Local Government",PINS,29/05/2020,Specialist Technical Support,Data and Performance,HAYS SPECIALIST RECRUITMENT LTD,,Large,,5106260644,Senior records manager,NW1 2AF,"3,132.00",
"Housing, Communities & Local Government",PINS,29/05/2020,Specialist Technical Support,Corporate Services Director,METHODS BUSINESS AND DIGITAL TECH,,Medium,,5106260675,Test Analyst,EC1N 8TS,"2,348.10",
"Housing, Communities & Local Government",PINS,29/05/2020,Specialist Technical Support,Research and Development,HAYS SPECIALIST RECRUITMENT LTD,,Large,,5106260643,Test Analyst ODT,NW1 2AF,"2,514.84",
"Housing, Communities & Local Government",PINS,29/05/2020,Specialist Technical Support,Research and Development,HAYS SPECIALIST RECRUITMENT LTD,,Large,,5106260641,Test Analyst ODT,NW1 2AF,"1,398.82",
"Housing, Communities & Local Government",PINS,29/05/2020,Vehicle hire,Business Support,ENTERPRISE RENT A CAR,,Large,,5106260664,Vehicle Damage Claim,SO23 0LD,670.98,
